Cogmind - Beta 13 X2 @@@ ROGUE MODE // 2024.06.04 @ 12:41:02 Player: btmk16 Result: Destroyed by Y-54 Guardian with Flak Gun Performance ------------- Evolutions (4) 2000 Regions Visited (8) 1600 Robots Destroyed (106) 530 Value Destroyed (4073) 4073 Prototype IDs (7) 140 Alien Tech Used (0) 0 Bonus (2389) 2389 TOTAL SCORE: 10732 Bonus ------- High Alert Combat Kills 135 Follower Combat Kills 380 Entered Garrisons 400 Used RIF Installer 1500 Friendly Fire -26 Cogmind --------- Core Integrity 0/850 Matter 297/300 Energy 100/100 System Corruption 0% Temperature Cool (6) Movement Rolling (100) Location -6/Garrison Parts ------- > --- POWER (1) -------- (None) > --- PROPULSION (3) --- Armored Huge Wheel > --- UTILITY (9) ------ (None) > --- WEAPON (2) ------- (None) > --- INVENTORY (5) ---- Armored Huge Wheel Peak State ------------ > --- POWER ------------ Neutrino Core > --- PROPULSION ------- Armored Wheel Armored Wheel Armored Wheel > --- UTILITY ---------- Advanced Heat Sink Advanced Heat Sink Advanced Heat Sink Coolant Injector Huge Storage Unit Hardened Heavy Armor Plating Improved Light Armor Plating Relay Coupler [Swarmer] > --- WEAPON ----------- Wave Gun Quantum Rifle > --- INVENTORY -------- Improved Deuterium Engine Armored Wheel Armored Wheel Armored Wheel Armored Huge Wheel Armored Huge Wheel Armored Huge Wheel Improved Heat Sink Improved Heat Sink Large Storage Unit Structural Scanner Improved Trap Scanner Relay Coupler [NC] Relay Coupler [NC] Relay Coupler [Sentry] Gatling Laser Phase Cannon Magnetic Acceleration Cannon Improved Datajack Remote Datajack Shock Maul [Rating: 68] Favorites ----------- Power Ion Engine Engine Ion Engine Power Core Neutrino Core Reactor Particle Reactor Propulsion Light Treads Treads Light Treads Wheel Armored Wheel Utility Large Storage Unit Device Improved Heat Sink Storage Large Storage Unit Processor Targeting Computer Hackware Hacking Suite Protection Hardened Medium Armor Plating Weapon Particle Cannon Energy Gun Wave Gun Energy Cannon Particle Cannon Ballistic Gun Light Assault Rifle Ballistic Cannon Magnetic Acceleration Cannon Launcher Rocket Launcher Impact Weapon Shock Maul Build | -11 -10 -10 -9 -8 -7 -7 -6 -6 ------- Run | Yrd Mat Min Mat Mat Fac Gar Fac Gar Slots Evolved 8 | . . . 2 2 2 . 2 . Power . | . . . . . . . . . Propulsion 1 | . . . . . . . 1 . Utility 7 | . . . 2 2 2 . 1 . Weapon . | . . . . . . . . . Parts Attached 108 | 6 7 2 24 12 2 32 20 3 Power 8 | 1 . . 3 . . 3 1 . Engine 5 | 1 . . 3 . . 1 . . Core 2 | . . . . . . 1 1 . Reactor 1 | . . . . . . 1 . . Propulsion 18 | 2 1 . 7 3 . 2 2 1 Treads 13 | 2 1 . 7 3 . . . . Leg . | . . . . . . . . . Wheel 5 | . . . . . . 2 2 1 Hover . | . . . . . . . . . Flight . | . . . . . . . . . Utility 48 | 1 4 . 8 5 2 14 12 2 Device 24 | . 2 . 3 1 1 8 7 2 Storage 4 | 1 2 . . . . 1 . . Processor 2 | . . . . 1 1 . . . Hackware 3 | . . . 2 . . . 1 . Protection 15 | . . . 3 3 . 5 4 . Artifact . | . . . . . . . . . Weapon 34 | 2 2 2 6 4 . 13 5 . Energy Gun 16 | . . . 3 1 . 9 3 . Energy Cannon 6 | . 2 1 1 2 . . . . Ballistic Gun 2 | 2 . . . . . . . . Ballistic Cannon 3 | . . . . . . 2 1 . Launcher 6 | . . 1 2 1 . 2 . . Special Weapon . | . . . . . . . . . Impact Weapon 1 | . . . . . . . 1 . Slashing Weapon . | . . . . . . . . . Piercing Weapon . | . . . . . . . . . Special Melee Weapon . | . . . . . . . . . Unidentified Prototypes 4 | . . . 2 . . . 2 . Corrupted Parts 1 | . . . 1 . . . . . System Corruption 3 | . . . 3 . . . . . Parts Lost 40 | . . . 2 1 1 14 10 12 Power 4 | . . . . . . 2 1 1 Propulsion 6 | . . . . . . 2 1 3 Utility 22 | . . . 2 . 1 6 7 6 Weapon 8 | . . . . 1 . 4 1 2 Highest Loss Streak 12 | . . . 1 1 1 10 6 12 To Critical Strikes . | . . . . . . . . . Average Slot Usage (%) 95 | . 93 100 98 99 91 92 94 82 Engine 8 | . 14 14 10 9 7 1 . . Core 1 | . . . . . . 2 3 4 Treads 16 | . 28 28 22 18 15 2 . . Wheel 5 | . . . . . . 12 20 17 Device 14 | . 7 14 10 9 8 20 28 23 Storage 10 | . 14 14 11 9 7 7 6 5 Processor 2 | . . . . 9 12 9 . . Hackware 3 | . . . 10 9 7 1 1 5 Protection 9 | . . . 10 17 15 15 16 11 Energy Gun 6 | . . . 6 9 7 11 12 11 Energy Cannon 11 | . 17 27 15 7 7 1 . . Ballistic Gun 1 | . 10 . . . . . . . Naked Turns 20 | . . . . . . . . 20 Heaviest Build 138 | 12 35 35 38 50 50 138 133 134 Greatest Support 40 | 40 40 40 40 40 40 40 36 36 Greatest Overweight (x) 7 | . . . . 1 1 5 3 7 Average Overweight (x) 1 | . . . . . 1 2 2 1 Largest Inventory Capacity 25 | 8 15 15 15 15 15 25 25 25 Average Capacity 16 | 7 11 15 15 15 15 18 25 22 Most Carried 25 | 8 14 15 15 15 15 24 25 24 Average Carried 15 | 5 9 14 14 14 15 15 23 21 Final Capacity 25 | 8 15 15 15 15 15 25 25 5 Final Carried 24 | 8 14 15 15 15 15 22 24 2 Class Distribution -------------------- 66% | Mutant 23% | Bothacker-Mutant 10% | Scavenger-Mutant Dominant Class ---------------- Mutant | -10/Materials Mutant | -10/Mines Mutant | -9/Materials Mutant | -8/Materials Mutant | -7/Factory Scavenger-Mutant | -7/Garrison Bothacker-Mutant | -6/Factory Bothacker-Mutant | -6/Garrison Resources | -11 -10 -10 -9 -8 -7 -7 -6 -6 ----------- Run | Yrd Mat Min Mat Mat Fac Gar Fac Gar Matter Collected 1453 | 282 133 30 291 90 . 420 187 20 Remotely . | . . . . . . . . . Salvage Created 4334 | 126 614 107 819 743 . 738 959 228 Parts 207 | 7 46 5 39 32 . 29 41 8 Haulers Intercepted 6 | . 2 . 3 . . . 1 . Recyclers Shooed 2 | . 1 . . . . . 1 . Parts Field Recycled . | . . . . . . . . . Retrieved Matter . | . . . . . . . . . Parts Self-Destructed . | . . . . . . . . . Prevented . | . . . . . . . . . Kills | -11 -10 -10 -9 -8 -7 -7 -6 -6 ------- Run | Yrd Mat Min Mat Mat Fac Gar Fac Gar Combat Hostiles Destroyed 86 | . 12 5 19 17 . 14 15 4 Guns 44 | . 6 . 5 7 . 8 15 3 Cannons 24 | . 5 3 9 4 . 3 . . AOE 15 | . . 2 5 6 . 2 . . Classes Destroyed 14 | 2 6 . 1 2 . 2 1 . Worker 4 | 2 1 . . 1 . . . . Builder 1 | . 1 . . . . . . . Hauler 6 | . 2 . 3 . . . 1 . Recycler 3 | 1 1 . . . . . 1 . Mechanic 1 | . . . . 1 . . . . Operator 1 | . 1 . . . . . . . Watcher 4 | . 3 . 1 . . . . . Swarmer 21 | . 6 2 6 . . 4 3 . Grunt 46 | . 6 2 7 14 . 6 8 3 Brawler 1 | . . . . . . 1 . . Duelist 1 | . . . . 1 . . . . Sentry 12 | . . . 6 2 . 2 2 . Hunter 1 | . . . . . . . 1 . Programmer 3 | . . . . . . 1 1 1 Best Kill Streak 6 | 2 3 2 3 6 . 6 4 3 Combat Bots Only 6 | . 3 2 3 6 . 6 4 3 Max Kills in Single Turn 2 | 1 2 2 2 2 . 1 1 1 Gunslinging . | . . . . . . . . . Exploded 2 | . . 2 2 2 . 1 . . Melee . | . . . . . . . . . Uniques/NPCs Destroyed 1 | . . 1 . . . . . . YI-UF0 (-10/Mines) Combat | -11 -10 -10 -9 -8 -7 -7 -6 -6 -------- Run | Yrd Mat Min Mat Mat Fac Gar Fac Gar Hostile Shots Fired 726 | . 50 17 61 53 12 176 160 197 Missed 204 | . 16 6 14 16 2 49 39 62 Damage Taken 7508 | . 334 322 580 704 206 1641 1881 1840 Core 1413 | . 80 90 123 51 43 175 258 593 Absorbed by Shields 136 | . . . . . . 87 . 49 Core Remaining (%) 71 | 100 . 32 69 90 . 68 . . Volleys Fired 341 | 11 58 14 46 46 2 69 78 17 Largest 2 | 2 2 2 2 2 2 2 2 2 Hottest 175 | 40 136 136 136 124 116 175 175 175 Shots Fired 639 | 22 116 28 90 74 4 120 153 32 Gun 421 | 22 63 . 29 35 2 87 151 32 Cannon 202 | . 53 27 55 33 2 30 2 . Launcher 16 | . . 1 6 6 . 3 . . Special . | . . . . . . . . . Kinetic 91 | 22 63 . . . . 4 2 . Thermal 532 | . 53 27 84 68 4 113 151 32 Explosive 16 | . . 1 6 6 . 3 . . Electromagnetic . | . . . . . . . . . Robot Hit Streak 21 | 7 4 10 11 13 4 11 21 7 Robot Miss Streak 4 | 4 4 2 4 2 . 4 2 3 Penetration Max . | . . . . . . . . . Secondary Targets 4 | . . . 1 1 . . 2 . Max Gunslinging Chain 1 | . . . 1 1 . . 1 . Shots Hit Robots 406 | 13 60 16 55 46 2 76 117 21 Core Hits 198 | 7 24 6 30 39 1 46 39 6 Critical Kills 2 | . 2 . . . . . . . Critical Parts Destroyed . | . . . . . . . . . Critical Strikes 13 | . 2 . 3 4 . 2 . 2 Burn 11 | . . . 3 4 . 2 . 2 Meltdown 2 | . 2 . . . . . . . Melee Attacks . | . . . . . . . . . Impact . | . . . . . . . . . Slashing . | . . . . . . . . . Piercing . | . . . . . . . . . Sneak Attacks . | . . . . . . . . . Combat Hostiles . | . . . . . . . . . Follow-up Attacks . | . . . . . . . . . Damage Inflicted 10597 | 95 898 400 1453 1903 39 2230 2933 646 Guns 6263 | 95 264 . 387 481 17 1446 2933 640 Cannons 2506 | . 634 326 719 351 22 454 . . Explosions 1820 | . . 74 347 1069 . 330 . . Melee . | . . . . . . . . . Ramming 8 | . . . . 2 . . . 6 Kinetic 359 | 95 264 . . . . . . . Thermal 8767 | . 634 326 1106 1189 39 1900 2933 640 Explosive 1463 | . . 74 347 712 . 330 . . Electromagnetic . | . . . . . . . . . Impact . | . . . . . . . . . Slashing . | . . . . . . . . . Piercing . | . . . . . . . . . Highest Corruption 5 | . . . 5 . . 1 . . Average Corruption 1 | . . . 3 . . 1 . . Corruption Purged . | . . . . . . . . . Corruption Blocked 7 | . . . . . . 7 . . Effects 22 | . . . 12 . . 10 . . Message Errors 5 | . . . 4 . . 1 . . Matter Fused 4 | . . . 2 . . 2 . . Heat Flow Errors 6 | . . . 1 . . 5 . . Energy Discharges 1 | . . . . . . 1 . . Data Loss (minor) 1 | . . . 1 . . . . . Misfires 3 | . . . 2 . . 1 . . Alerts 1 | . . . 1 . . . . . Weapon Failures 1 | . . . 1 . . . . . Overload Shots . | . . . . . . . . . Overflow Damage 92 | . . . 34 58 . . . . Projectiles 24 | . . . 10 14 . . . . Explosions 68 | . . . 24 44 . . . . Melee . | . . . . . . . . . Knockbacks . | . . . . . . . . . Impact . | . . . . . . . . . Kinetic . | . . . . . . . . . Secondary . | . . . . . . . . . Self-Inflicted Damage 218 | . . 16 18 68 . 113 . 3 Shots 8 | . . 1 1 3 . 3 . . Rammed 3 | . . . . 1 . . . 2 Targets Rammed 3 | . . . . 1 . . . 2 Kicked . | . . . . . . . . . Crushed . | . . . . . . . . . Highest Temperature 353 | . 237 135 183 353 6 245 262 195 Average Temperature 79 | . 44 44 46 112 3 79 101 122 Received Heat Transfer 2071 | . 75 72 201 315 81 413 536 378 Siege Activations . | . . . . . . . . . Robots Corrupted . | . . . . . . . . . Combat Hostiles . | . . . . . . . . . Parts Fried . | . . . . . . . . . Impact Corruptions . | . . . . . . . . . Robots Melted 4 | . 2 . . . . 1 . 1 Combat Hostiles 3 | . 1 . . . . 1 . 1 Parts Melted 35 | . 7 1 3 2 . 2 15 5 Heat Transferred 14463 | . 1147 592 2331 2174 74 3130 4016 999 Parts Sabotaged . | . . . . . . . . . Parts Stolen . | . . . . . . . . . Parts Stripped . | . . . . . . . . . Power Chain Reactions . | . . . . . . . . . Missiles Intercepted . | . . . . . . . . . Alert | -11 -10 -10 -9 -8 -7 -7 -6 -6 ------- Run | Yrd Mat Min Mat Mat Fac Gar Fac Gar Peak Influence 835 | 15 250 147 254 559 254 835 476 394 Initial 438 | . 9 32 . 71 254 170 438 209 Average 222 | 2 130 34 100 197 253 549 339 306 Maximum Alert Level 3 | . 1 . 1 2 1 3 2 1 Low Security (%) 54 | 100 78 100 87 50 . 8 1 . Level 1 26 | . 21 . 12 30 100 17 60 100 Level 2 13 | . . . . 19 . 40 37 . Level 3 5 | . . . . . . 33 . . Level 4 . | . . . . . . . . . Level 5 . | . . . . . . . . . High Security . | . . . . . . . . . Max Security . | . . . . . . . . . Squads Dispatched 16 | . 3 . 3 4 2 . 4 . Investigation 4 | . 1 . 2 . 1 . . . Extermination 2 | . . . . . . . 2 . Reinforcement 8 | . 2 . 1 3 1 . 1 . Assault 2 | . . . . 1 . . 1 . Garrison . | . . . . . . . . . Intercept . | . . . . . . . . . Searches Triggered . | . . . . . . . . . Construction Impeded 3 | . . . . 2 . . 1 . Haulers Reinforced . | . . . . . . . . . Active Scanning Responses . | . . . . . . . . . Cargo Convoy Interrupts . | . . . . . . . . . Stealth | -11 -10 -10 -9 -8 -7 -7 -6 -6 --------- Run | Yrd Mat Min Mat Mat Fac Gar Fac Gar Distress Signals 7 | . 2 . 3 1 . . 1 . Communications Jammed . | . . . . . . . . . Distress Signals . | . . . . . . . . . Times Spotted 168 | . 22 6 34 26 5 23 37 15 Peak Tracking Total 10 | . 3 3 5 7 4 5 5 10 Tactical Retreats 1 | . . . 1 . . . . . Traps | -11 -10 -10 -9 -8 -7 -7 -6 -6 ------- Run | Yrd Mat Min Mat Mat Fac Gar Fac Gar Traps Triggered 12 | . 1 . 2 . 1 5 . 3 Indirectly . | . . . . . . . . . Trap Hack Attempts . | . . . . . . . . . Triggered . | . . . . . . . . . Disarmed . | . . . . . . . . . Reprogrammed . | . . . . . . . . . Reused . | . . . . . . . . . Traps Extracted . | . . . . . . . . . Installed . | . . . . . . . . . Triggered . | . . . . . . . . . Machines | -11 -10 -10 -9 -8 -7 -7 -6 -6 ---------- Run | Yrd Mat Min Mat Mat Fac Gar Fac Gar Machines Disabled 13 | . 1 . 3 4 . 2 2 1 Max in Single Turn 2 | . 1 . 1 2 . 1 1 1 Garrison Access 1 | . . . . 1 . . . . Garrison Relay 2 | . . . . . . 2 . . Machines Repaired . | . . . . . . . . . Machines Dismantled . | . . . . . . . . . Machines Sabotaged . | . . . . . . . . . Overloaded Fab Kills . | . . . . . . . . . Hacking | -11 -10 -10 -9 -8 -7 -7 -6 -6 --------- Run | Yrd Mat Min Mat Mat Fac Gar Fac Gar Machines Accessed 22 | . 5 . 10 . 1 1 4 1 Terminals 19 | . 5 . 9 . . 1 3 1 Fabricators . | . . . . . . . . . Repair Stations . | . . . . . . . . . Recycling Units . | . . . . . . . . . Scanalyzers 1 | . . . 1 . . . . . Garrison Access 2 | . . . . . 1 . 1 . Total Hacks 51 | . 11 . 22 . 3 4 10 1 Successful 30 | . 7 . 16 . 1 . 5 1 Failed 21 | . 4 . 6 . 2 4 5 . Catastrophic 3 | . 1 . 1 . . . 1 . Database Lockouts . | . . . . . . . . . Manual 22 | . 5 . 10 . . . 7 . Terminals 45 | . 11 . 20 . . 4 9 1 Fabricators . | . . . . . . . . . Repair Stations . | . . . . . . . . . Recycling Units . | . . . . . . . . . Scanalyzers 2 | . . . 2 . . . . . Garrison Access 4 | . . . . . 3 . 1 . Terminal Hacks 15 | . 4 . 9 . . . 1 1 Robot Analysis 1 | . . . 1 . . . . . Prototype ID Bank 1 | . . . 1 . . . . . Branch Access Points 2 | . 1 . 1 . . . . . Emergency Access Points 1 | . . . . . . . . 1 Alert Level 2 | . 1 . 1 . . . . . Unreport Threat 2 | . . . 1 . . . 1 . Transport Status 1 | . . . 1 . . . . . Garrison Status 1 | . . . 1 . . . . . Hauler Manifests 1 | . . . 1 . . . . . Zone Layout 3 | . 2 . 1 . . . . . Fabricator Hacks . | . . . . . . . . . Repair Station Hacks . | . . . . . . . . . Recycling Unit Hacks . | . . . . . . . . . Scanalyzer 2 | . . . 2 . . . . . Insert Component 1 | . . . 1 . . . . . Analyze 1 | . . . 1 . . . . . Garrison Access Hacks 2 | . . . . . 1 . 1 . Unlock Access 2 | . . . . . 1 . 1 . Unauthorized Hacks 11 | . 3 . 5 . . . 3 . Terminals 11 | . 3 . 5 . . . 3 . Track 1 | . . . 1 . . . . . Botnet 10 | . 3 . 4 . . . 3 . Fabricators . | . . . . . . . . . Repair Stations . | . . . . . . . . . Recycling Units . | . . . . . . . . . Scanalyzers . | . . . . . . . . . Garrison Access . | . . . . . . . . . Data Cores Recovered . | . . . . . . . . . Used . | . . . . . . . . . Hacking Detections 16 | . 4 . 5 . 1 1 4 1 Full Trace Events 1 | . . . . . 1 . . . Feedback Events . | . . . . . . . . . Feedback Blocked . | . . . . . . . . . Robot Schematics Acquired . | . . . . . . . . . Robots Built . | . . . . . . . . . Authchips . | . . . . . . . . . Time . | . . . . . . . . . Total Robot Build Rating . | . . . . . . . . . Part Schematics Acquired 1 | . . . 1 . . . . . Parts Built . | . . . . . . . . . Authchips . | . . . . . . . . . Time . | . . . . . . . . . Total Part Build Rating . | . . . . . . . . . Parts Repaired . | . . . . . . . . . Time . | . . . . . . . . . Parts Recycled . | . . . . . . . . . Recycled Matter . | . . . . . . . . . Retrieved Matter . | . . . . . . . . . Retrieved Components . | . . . . . . . . . Parts Scanalyzed 1 | . . . 1 . . . . . Part Schematics Acquired 1 | . . . 1 . . . . . Parts Damaged . | . . . . . . . . . Bothacking | -11 -10 -10 -9 -8 -7 -7 -6 -6 ------------ Run | Yrd Mat Min Mat Mat Fac Gar Fac Gar Used RIF Installer 3 | . . . . . . 2 . 1 Threat Obfuscator 1 | . . . . . . . . 1 Alert ID Control 1 | . . . . . . 1 . . Robots Hacked . | . . . . . . . . . Non-combat . | . . . . . . . . . Combat . | . . . . . . . . . Robot Hacks Applied . | . . . . . . . . . Relay Couplers Released 9 | . . . . 2 . 7 . . Machine Destruction 9 | . . . . 2 . 7 . . Attached 1 | . . . . . . . 1 . Fabnet Peak Effective % . | . . . . . . . . . Robots Rewired . | . . . . . . . . . Allies Hacked . | . . . . . . . . . Hacks Repelled . | . . . . . . . . . Allies | -11 -10 -10 -9 -8 -7 -7 -6 -6 -------- Run | Yrd Mat Min Mat Mat Fac Gar Fac Gar Total Allies 3 | . . 1 . . . 2 . . Largest Group 2 | . . 1 1 . . 2 1 . Highest-Rated Group 157 | . . 31 31 . . 157 80 . Highest-Rated Ally 80 | . . 31 31 . . 80 80 . Total Orders . | . . . . . . . . . Ally Attacks 59 | . . . 33 . . 19 7 . Total Damage 1710 | . . . 417 . . 949 344 . Kills 22 | . . . 8 . . 9 5 . Allies Corrupted . | . . . . . . . . . Allies Melted . | . . . . . . . . . Intel | -11 -10 -10 -9 -8 -7 -7 -6 -6 ------- Run | Yrd Mat Min Mat Mat Fac Gar Fac Gar Robot Analysis Total 1 | . . . 1 . . . . . Derelict Logs Recovered . | . . . . . . . . . Drone Launches . | . . . . . . . . . Drone Recoveries . | . . . . . . . . . Exploration | -11 -10 -10 -9 -8 -7 -7 -6 -6 ------------- Run | Yrd Mat Min Mat Mat Fac Gar Fac Gar Turns Passed 8667 | 134 1624 1378 1620 751 186 1501 1073 400 Spaces Moved 4418 | 56 800 786 860 249 72 855 606 134 Core 35 | 3 . . . . . . . 32 Treads 2861 | 53 800 786 860 249 72 41 . . Legs . | . . . . . . . . . Wheels 1522 | . . . . . . 814 606 102 Hover . | . . . . . . . . . Flight . | . . . . . . . . . Fastest Speed 50 | 50 160 160 160 160 245 105 120 50 Average Speed 157 | 154 160 160 160 237 245 142 134 110 Slowest Speed 245 | 160 160 160 160 245 245 245 135 195 Overloaded Moves . | . . . . . . . . . Propulsion Burnouts . | . . . . . . . . . Robots Hopped . | . . . . . . . . . Cave-ins Triggered . | . . . . . . . . . Exploration Rate (%) 45 | 5 93 99 72 23 3 65 20 31 Regions Visited 8 Branch Regions 1 Pre-discovered Areas . | . . . . . . . . . Known Exits Taken 3 | . 1 . . . 1 . 1 . Unknown Exits Taken 4 | 1 . 1 1 1 . . . . Scrap Searched 2 | . . 2 . . . . . . Spaces Dug 31 | . . 11 7 1 . 11 1 . Terrain Destroyed 146 | . . 14 43 68 . 15 6 . Melee . | . . . . . . . . . Projectile 16 | . . 4 . 6 . . 6 . AOE 130 | . . 10 43 62 . 15 . . Terrain Rammed . | . . . . . . . . . Walls Destroyed . | . . . . . . . . . Machines Disabled . | . . . . . . . . . Actions | -11 -10 -10 -9 -8 -7 -7 -6 -6 --------- Run | Yrd Mat Min Mat Mat Fac Gar Fac Gar Total 5549 | 83 1047 881 1019 339 76 1014 733 357 Wait 526 | 3 156 75 63 21 . 20 11 177 Move 4412 | 55 799 785 859 248 72 854 606 134 Hop . | . . . . . . . . . Pick Up 52 | 8 14 3 7 3 . 8 9 . Fast Attach 33 | 6 3 . 8 1 2 7 6 . Attach 22 | . 1 . 1 2 . 10 7 1 Detach 4 | . 2 . . . . 2 . . Swap 53 | . 3 2 15 9 . 15 7 2 Drop 53 | . 11 2 20 8 . 3 8 1 Fire 341 | 11 58 14 46 46 2 69 78 17 Melee . | . . . . . . . . . Ram 2 | . . . . . . . . 2 Kick . | . . . . . . . . . Crush 1 | . . . . 1 . . . . Escape Stasis 48 | . . . . . . 25 . 23 Rewire 2 | . . . . . . 1 1 . Trap . | . . . . . . . . . Miscellaneous . | . . . . . . . . . Route ------- -11/Scrapyard -10/Materials (discovered 4 exits: *Mat x2 / *Min x2) -10/Mines (discovered 4 exits: *Mat x2 / [*Exi] / [*Sub]) -9/Materials (discovered 4 exits: [*Mat x2] / *Min x2) -8/Materials (discovered 2 exits: *Fac / [*Sto]) -7/Factory -7/Garrison -6/Factory -6/Garrison History --------- Turn | Location | Event 20 | -11/Scrapyard | Discovered new exit (range 15) 135 | -11/Scrapyard | Entered Materials 307 | -10/Materials | Build established: Mutant 400 | -10/Materials | Discovered new exit (range 14) 469 | -10/Materials | Discovered new exit (range 10) 1123 | -10/Materials | Discovered new exit (range 4) 1349 | -10/Materials | Discovered new exit (range 12) 1486 | -10/Materials | Identified exit to Mines 1759 | -10/Materials | Entered Mines 1760 | -10/Mines | Assembled infested the area 2124 | -10/Mines | Received a Rocket Launcher from a helpful Derelict 2130 | -10/Mines | Discovered new exit (range 16) 2364 | -10/Mines | Core integrity fell below 50% 2365 | -10/Mines | Destroyed YI-UF0 2488 | -10/Mines | Discovered new exit (range 12) 2489 | -10/Mines | Escorted by a lone wolf Derelict 2749 | -10/Mines | Discovered new exit (range 6) 2979 | -10/Mines | Discovered new exit (range 5) 3137 | -10/Mines | Entered Materials 3137 | -9/Materials | Accompanied by 1 ally 3137 | -9/Materials | Evolved 2 slots: Utility x2 3367 | -9/Materials | Discovered new exit (range 16) 3564 | -9/Materials | Identified exit to Mines 3604 | -9/Materials | Discovered new exit (range 14) 4659 | -9/Materials | Discovered new exit (range 15) 4757 | -9/Materials | Entered another Materials area 4757 | -8/Materials | Evolved 2 slots: Utility x2 5086 | -8/Materials | Discovered new exit (range 13) 5415 | -8/Materials | Discovered new exit (range 11) 5508 | -8/Materials | Entered Factory 5508 | -7/Factory | Evolved 2 slots: Utility x2 5694 | -7/Factory | Identified exit to Garrison 5694 | -7/Factory | Entered Garrison 5762 | -7/Garrison | Lost 4 parts (1p2u1w) 5819 | -7/Garrison | Triggered checkpoint 5863 | -7/Garrison | Garrison Relay disabled 5927 | -7/Garrison | Installed Relay Interface Framework 6031 | -7/Garrison | Build established: Scavenger-Mutant 6032 | -7/Garrison | Triggered checkpoint 6110 | -7/Garrison | Lost 10 parts (1p1n5u3w) 6147 | -7/Garrison | Discovered new exit (range 10) 6167 | -7/Garrison | Found embedded Infiltrators 6174 | -7/Garrison | Triggered checkpoint 6430 | -7/Garrison | Triggered checkpoint 6496 | -7/Garrison | Triggered checkpoint 6606 | -7/Garrison | Garrison Relay disabled 6911 | -7/Garrison | Build established: Bothacker-Mutant 6976 | -7/Garrison | Expanded RIF knowledge: Alert ID Control 7195 | -7/Garrison | Entered Factory 7195 | -6/Factory | Accompanied by 1 ally 7195 | -6/Factory | Evolved 2 slots: Propulsion x1, Utility x1 7287 | -6/Factory | Assembled infested ambush trap array 7545 | -6/Factory | First assault squad dispatched 8023 | -6/Factory | Lost 6 parts (5u1w) 8268 | -6/Factory | Identified exit to Garrison 8268 | -6/Factory | Entered Garrison 8295 | -6/Garrison | Assembled breached garrison interior 8627 | -6/Garrison | Core integrity fell below 50% 8649 | -6/Garrison | Core integrity fell below 20% 8656 | -6/Garrison | Lost 12 parts (1p3n6u2w) 8666 | -6/Garrison | Expanded RIF knowledge: Threat Obfuscation 8668 | -6/Garrison | Destroyed by Y-54 Guardian with Flak Gun Last Messages --------------- 08625_ Adv. Heat Sink destroyed. 08631_ Triggered Stasis Trap. 08631_ A bubble of rippling energy engulfs the area. 08631_ Field strength at 94. 08632_ Field strength at 84. 08633_ Field strength at 69. 08634_ Field strength at 59. 08635_ Field strength at 50. 08636_ Field strength at 37. 08637_ Field strength at 22. 08638_ Field strength at 12. 08639_ Stasis field depleted. 08643_ Detecting nearby RIF Installer. 08645_ Connecting with Garrison Terminal... >>Access(Emergency) Found 40 emergency access points. Map updated. Initiating installation procedure... 08666_ Expanded RIF knowledge: Threat Obfuscation. 08667_ Slammed into S-27 Virus. Map ----- +----------------------------------------------------+ | | | | | | | | | | | ????????????????????????????????????????????? | | ????????????????????????????????????????????? | | ????????????????????????????????????????????? | | ????????????????????????????????????????????? | | ????????????????????????????????????????????? | | ????????????????????????????????????????????? | | ????????????????????????????????????????????? | | ????????????????????????????????????????????? | | ????????????????????????????????????????????? | | ????????????????????????????????????????????? | | ????????????????????????????????????????????? | | ????????????????????????????????????????????? | | ????????????????????????????????????????????? | | ????????????????????????????????????????????? | | ????????????????????????????????????????????? | | ????????????????????????????????????????????? | | ??????????????????#####?????????????????????? | | ??????????????????#"""#?????????????????????? | | ??????????????????#"s"#?????????????????????? | | ??????????????????#"s"#?????????????????????? | | ??????????????????#"@"#?????????????????????? | | ??????????????????#ss #?????????????????????? | | ??????????????????## ##?????????????????????? | | ???????????????????# #??????????????????????? | | ???????????????????# #???????###????????????? | | ???????????????????# #?????? #????????????? | | ???????????????????# #?##### ####?????????? | | ???????????????????# #?# ??????????? | | ???????????????????# ### ??????????????? | | ???????????????????# ##T #???????????++????? | | ???????????????????#Y### #?????????????????? | | ???????????????????#Y#?# #?????????????????? | | ?????????????####### ### ############++##### | | ????????# ^ | | ????????# | | ????????# | | ????????#################+#############+### | | ??????????????????????????????????????????# | | ??????????????????????????????????????????# | | ??????????????????????????????????????????# | | ??????????????????????????????????????????# | | ??????????????????????????????????????????# / | | ??????????????????????????????????????????# ! | | ??????????????????????????????????????????# = | | ??????????????????????????????????????????+ | +----------------------------------------------------+ Best States ------------- Heat Dissipation 94 Coolant Potential 65 Energy Generation 23 Energy Capacity 340 Matter Stores 300 Matter Capacity 300 Sight Range 16 Terrain Scan Density 10 Corruption Block 8 Armor Coverage 750 Evasion (%) 50 Targeting Accuracy 5 Recoil Reduction 2 Energy Filtering 30 Offensive Hacking 20 Relay Coupler Types 1 Relay Coupler Value 33 Item Schematics ----------------- Lgt. Armor Plating | -9/Materials | Scanalyzed Robot Schematics ------------------ None Fabricated ------------ Nothing Alien Tech Used ----------------- None Achievements -------------- None Challenges ------------ None Game ------ Seed TachyonInertialMediator Manual? 0 Play Time 00:57:25 Cumulative 676.5 hours Start 2024.06.04 @ 11:44:31 End 2024.06.04 @ 12:41:02 Sessions 1 Manual Loads 0 Difficulty Rogue Special Mode None Game No. 673 Rogue 672 Adventurer 0 Explorer 1 Win Type - Total 32 Types 23/0/6/3/0/0/0/0/0 Lore% 84 Gallery% 90 Achievement% 79 Wizard Run 0 Options --------- ASCII 0 Keyboard 1 Movement Vi Keybinds 0 Fullscreen 1 Font 18/SmallcapsGlow Map View 76x50 Zoom Use 0% Tactical HUD 1 Map Filters NONE Filters NONE Steam 1 RUN: 1f275fe1-71ee-4e9f-824a-30321ff0ee38